fUSD/lending_fUSD_20260528
["ID","MTS","AMOUNT","RATE_DAILY","PERIOD"]
[423185513,1779910268000,-500.0,0.00035616,30]
[423185492,1779910268000,-150.0,0.00035596,7]
[423185503,1779910268000,-500.0,0.00035616,30]
[423185489,1779910268000,-150.0,0.00035568,30]
[423185475,1779910268000,-378.54611404,0.0003543,2]
[423185485,1779910268000,-150.0,0.00035513,7]
[423185523,1779910268000,-500.0,0.00035616,30]
[423185463,1779910268000,-1256.50748054,0.0003543,2]
[423185464,1779910268000,-595.46485208,0.0003543,2]
[423185465,1779910268000,-464.48677942,0.0003543,2]
[423185466,1779910268000,-605.86775479,0.0003543,2]
[423185467,1779910268000,-480.02767971,0.0003543,2]
[423185468,1779910268000,-727.07827244,0.0003543,2]
[423185469,1779910268000,-302.21937029,0.0003543,2]
[423185473,1779910268000,-446.37584495,0.0003543,2]
[423185471,1779910268000,-1263.96825586,0.0003543,2]
[423185472,1779910268000,-344.76575966,0.0003543,2]
[423185483,1779910268000,-150.0,0.0003548,7]
[423185474,1779910268000,-1800.09388364,0.0003543,2]
[423185477,1779910268000,-368.23275126,0.00035433,14]
[423185476,1779910268000,-150.0,0.0003543,7]
[423185478,1779910268000,-222.392196,0.00035437,14]
[423185482,1779910268000,-150.0,0.00035472,7]
[423185486,1779910268000,-500.0,0.00035542,23]
[423185481,1779910268000,-150.0,0.0003547,7]
[423185487,1779910268000,-560.67,0.00035542,23]
[423185488,1779910268000,-150.0,0.00035554,7]
[423185484,1779910268000,-150.0,0.00035496,7]
[423185479,1779910268000,-500.0,0.0003544,30]
[423185480,1779910268000,-250.0,0.00035444,7]
[423185470,1779910268000,-300.0,0.0003543,2]
[423185515,1779910268000,-500.0,0.00035616,30]
[423185518,1779910268000,-500.0,0.00035616,30]
[423185570,1779910268000,-1000.0,0.00035616,10]
[423185546,1779910268000,-500.0,0.00035616,30]
[423185549,1779910268000,-500.0,0.00035616,30]
[423185548,1779910268000,-500.0,0.00035616,30]
[423185550,1779910268000,-500.0,0.00035616,30]
[423185552,1779910268000,-500.0,0.00035616,30]
[423185553,1779910268000,-319.1543372,0.00035616,30]
[423185551,1779910268000,-500.0,0.00035616,30]
[423185554,1779910268000,-303.80851446,0.00035616,7]
[423185555,1779910268000,-228.9,0.00035616,120]
[423185556,1779910268000,-1000.0,0.00035616,10]
[423185558,1779910268000,-1000.0,0.00035616,10]
[423185547,1779910268000,-500.0,0.00035616,30]
[423185559,1779910268000,-1000.0,0.00035616,10]
[423185561,1779910268000,-1000.0,0.00035616,10]
[423185560,1779910268000,-1000.0,0.00035616,10]
[423185567,1779910268000,-1000.0,0.00035616,10]
[423185568,1779910268000,-1000.0,0.00035616,10]
[423185566,1779910268000,-1000.0,0.00035616,10]
[423185565,1779910268000,-1000.0,0.00035616,10]
[423185563,1779910268000,-1000.0,0.00035616,10]
[423185564,1779910268000,-1000.0,0.00035616,10]
[423185569,1779910268000,-1000.0,0.00035616,10]
[423185571,1779910268000,-1000.0,0.00035616,10]
[423185572,1779910268000,-1000.0,0.00035616,10]
[423185562,1779910268000,-1000.0,0.00035616,10]
[423185557,1779910268000,-1000.0,0.00035616,10]
[423185522,1779910268000,-500.0,0.00035616,30]
[423185544,1779910268000,-500.0,0.00035616,30]
[423185519,1779910268000,-500.0,0.00035616,30]
[423185517,1779910268000,-500.0,0.00035616,30]
[423185520,1779910268000,-500.0,0.00035616,30]
[423185521,1779910268000,-500.0,0.00035616,30]
[423185516,1779910268000,-500.0,0.00035616,30]
[423185524,1779910268000,-500.0,0.00035616,30]
[423185528,1779910268000,-500.0,0.00035616,30]
[423185545,1779910268000,-500.0,0.00035616,30]
[423185533,1779910268000,-500.0,0.00035616,30]
[423185531,1779910268000,-500.0,0.00035616,30]
[423185529,1779910268000,-500.0,0.00035616,30]
[423185530,1779910268000,-500.0,0.00035616,30]
[423185525,1779910268000,-500.0,0.00035616,30]
[423185532,1779910268000,-500.0,0.00035616,30]
[423185542,1779910268000,-500.0,0.00035616,30]
[423185527,1779910268000,-500.0,0.00035616,30]
[423185543,1779910268000,-500.0,0.00035616,30]
[423185541,1779910268000,-500.0,0.00035616,30]
[423185540,1779910268000,-500.0,0.00035616,30]
[423185539,1779910268000,-500.0,0.00035616,30]
[423185538,1779910268000,-500.0,0.00035616,30]
[423185537,1779910268000,-500.0,0.00035616,30]
[423185536,1779910268000,-500.0,0.00035616,30]
[423185534,1779910268000,-500.0,0.00035616,30]
[423185526,1779910268000,-500.0,0.00035616,30]
[423185535,1779910268000,-500.0,0.00035616,30]
[423185610,1779910269000,-150.0,0.00035911,7]
[423185608,1779910269000,-150.0,0.00035885,7]
[423185606,1779910269000,-150.0,0.00035844,7]
[423185613,1779910269000,-3462.24,0.00035929,120]
[423185595,1779910269000,-150.0,0.000357,30]
[423185605,1779910269000,-184.7831,0.00035837,2]
[423185604,1779910269000,-150.0,0.00035802,7]
[423185603,1779910269000,-355.0,0.00035781,14]
[423185601,1779910269000,-150.0,0.00035772,7]
[423185615,1779910269000,-485.487886,0.00035929,7]
[423185609,1779910269000,-900.0,0.000359,13]
[423185626,1779910269000,-205.77743576,0.00036,120]
[423185614,1779910269000,-485.487886,0.00035929,7]
[423185607,1779910269000,-150.0,0.00035875,7]
[423185612,1779910269000,-150.0,0.00035929,7]
[423185616,1779910269000,-485.487886,0.00035929,7]
[423185617,1779910269000,-485.487886,0.00035929,7]
[423185618,1779910269000,-150.0,0.00035951,2]
[423185619,1779910269000,-150.0,0.00035951,2]
[423185625,1779910269000,-207.28396013,0.00036,120]
[423185620,1779910269000,-150.0,0.00035968,7]
[423185624,1779910269000,-185.88478102,0.00036,120]
[423185598,1779910269000,-150.0,0.00035743,7]
[423185611,1779910269000,-150.0,0.00035926,7]
[423185597,1779910269000,-150.0,0.0003572,7]
[423185584,1779910269000,-1176.0,0.00035685,30]
[423185600,1779910269000,-150.0,0.00035764,7]
[423185622,1779910269000,-1228.02891578,0.00036,120]
[423185580,1779910269000,-150.0,0.00035678,7]
[423185573,1779910269000,-1000.0,0.00035616,10]
[423185577,1779910269000,-150.0,0.00035617,7]
[423185579,1779910269000,-161.84,0.0003567,80]
[423185576,1779910269000,-281.31,0.00035616,2]
[423185574,1779910269000,-1000.0,0.00035616,10]
[423185575,1779910269000,-510.0,0.00035616,10]
[423185578,1779910269000,-150.0,0.00035637,7]
[423185581,1779910269000,-501.0,0.0003568,13]
[423185592,1779910269000,-155.0,0.00035691,30]
[423185596,1779910269000,-150.0,0.00035712,7]
[423185582,1779910269000,-301.0,0.00035685,30]
[423185583,1779910269000,-275.0,0.00035685,30]
[423185589,1779910269000,-295.0,0.00035691,30]
[423185590,1779910269000,-305.0,0.00035691,30]
[423185586,1779910269000,-158.0,0.00035685,30]
[423185591,1779910269000,-519.0,0.00035691,30]
[423185587,1779910269000,-334.0,0.00035691,30]
[423185588,1779910269000,-318.0,0.00035691,30]
[423185593,1779910269000,-206.0,0.00035691,30]
[423185594,1779910269000,-486.0,0.00035691,30]
[423185599,1779910269000,-150.0,0.00035761,7]
[423185602,1779910269000,-355.0,0.00035781,14]
[423185585,1779910269000,-286.0,0.00035685,30]
[423185621,1779910269000,-150.0,0.00035977,7]
[423185641,1779910269000,-3703.48,0.00036175,10]
[423185628,1779910269000,-282.02695724,0.00036,120]
[423185660,1779910269000,-150.0,0.00036353,7]
[423185657,1779910269000,-1814.99777701,0.00036316,86]
[423185656,1779910269000,-1814.99777701,0.00036316,86]
[423185659,1779910269000,-150.0,0.0003634,7]
[423185658,1779910269000,-2523.64,0.00036325,10]
[423185661,1779910269000,-5000.0,0.00036354,10]
[423185655,1779910269000,-150.0,0.00036298,7]
[423185675,1779910269000,-150.0,0.00036505,7]
[423185664,1779910269000,-55669.47,0.00036362,60]
[423185674,1779910269000,-150.0,0.000365,7]
[423185623,1779910269000,-283.91208686,0.00036,120]
[423185651,1779910269000,-150.0,0.00036257,7]
[423185663,1779910269000,-1569.87,0.00036362,60]
[423185672,1779910269000,-150.0,0.00036464,7]
[423185666,1779910269000,-150.0,0.00036381,7]
[423185671,1779910269000,-2500.0,0.0003645,10]
[423185668,1779910269000,-500.0,0.00036399,30]
[423185669,1779910269000,-158639.0,0.000364,30]
[423185673,1779910269000,-258.63753108,0.00036499,2]
[423185670,1779910269000,-150.0,0.00036422,7]
[423185676,1779910269000,-152.0,0.00036515,6]
[423185679,1779910269000,-222.392196,0.00036539,14]
[423185677,1779910269000,-140677.6052,0.00036532,30]
[423185678,1779910269000,-150.0,0.00036532,7]
[423185665,1779910269000,-1899.48,0.00036362,60]
[423185653,1779910269000,-719.04747942,0.00036283,2]
[423185667,1779910269000,-150.0,0.00036386,7]
[423185652,1779910269000,-150.0,0.00036269,7]
[423185662,1779910269000,-150.0,0.00036362,7]
[423185638,1779910269000,-150.0,0.00036145,7]
[423185627,1779910269000,-945.96681288,0.00036,120]
[423185630,1779910269000,-150.0,0.00036006,7]
[423185634,1779910269000,-418.54828766,0.00036061,2]
[423185629,1779910269000,-232.0,0.00036,2]
[423185632,1779910269000,-150.0,0.0003605,7]
[423185636,1779910269000,-150.0,0.00036092,7]
[423185635,1779910269000,-5000.0,0.00036091,10]
[423185633,1779910269000,-150.0,0.00036059,7]
[423185637,1779910269000,-150.0,0.00036133,7]
[423185640,1779910269000,-150.0,0.00036174,7]
[423185631,1779910269000,-150.0,0.00036009,7]
[423185644,1779910269000,-555.46,0.000362,90]
[423185649,1779910269000,-150.0,0.00036216,7]
[423185643,1779910269000,-150.0,0.00036181,7]
[423185642,1779910269000,-150.0,0.00036181,30]
[423185639,1779910269000,-827.7,0.00036153,30]
[423185646,1779910269000,-25000.0,0.00036201,10]
[423185654,1779910269000,-896.77747134,0.00036283,2]
[423185645,1779910269000,-500.0,0.000362,30]
[423185650,1779910269000,-3666.92,0.00036257,10]
[423185647,1779910269000,-150.0,0.00036206,7]
[423185648,1779910269000,-161.84,0.0003621,110]
[423185719,1779910270000,-166.65,0.000368,30]
[423185709,1779910270000,-179.73921443,0.00036795,7]
[423185714,1779910270000,-500.0,0.000368,30]
[423185716,1779910270000,-500.0,0.000368,30]
[423185713,1779910270000,-500.0,0.000368,30]
[423185708,1779910270000,-173.37497174,0.00036795,7]
[423185710,1779910270000,-227.40188606,0.00036795,7]
[423185711,1779910270000,-239.94148288,0.00036795,7]
[423185712,1779910270000,-269.36912467,0.00036795,7]
[423185717,1779910270000,-500.0,0.000368,30]
[423185718,1779910270000,-466.31,0.000368,30]
[423185720,1779910270000,-1384088.58120091,0.000368,2]
[423185740,1779910270000,-500.0,0.00036985,120]
[423185721,1779910270000,-151.0,0.000368,7]
[423185724,1779910270000,-151.0,0.000368,7]
[423185727,1779910270000,-485.487886,0.000368,7]
[423185722,1779910270000,-151.0,0.000368,7]
[423185726,1779910270000,-485.487886,0.000368,7]
[423185723,1779910270000,-197.051243,0.000368,7]
[423185728,1779910270000,-485.487886,0.000368,7]
[423185731,1779910270000,-279.44639655,0.00036833,120]
[423185730,1779910270000,-352.09429441,0.00036833,120]
[423185729,1779910270000,-485.487886,0.000368,7]
[423185715,1779910270000,-500.0,0.000368,30]
[423185725,1779910270000,-151.0,0.000368,7]
[423185707,1779910270000,-222.01031952,0.00036795,7]
[423185739,1779910270000,-500.0,0.00036985,120]
[423185705,1779910270000,-162.01841593,0.00036795,7]
[423185681,1779910270000,-151.0,0.00036542,7]
[423185680,1779910270000,-151.0,0.00036542,7]
[423185682,1779910270000,-151.0,0.00036542,7]
[423185686,1779910270000,-2523.64,0.00036568,10]
[423185683,1779910270000,-151.0,0.00036542,7]
[423185685,1779910270000,-150.0,0.00036546,7]
[423185694,1779910270000,-501.0,0.00036644,14]
[423185687,1779910270000,-150.0,0.00036578,7]
[423185692,1779910270000,-150.0,0.00036606,2]
[423185690,1779910270000,-150.0,0.00036606,2]
[423185688,1779910270000,-150.0,0.00036588,7]
[423185691,1779910270000,-150.0,0.00036606,2]
[423185684,1779910270000,-151.0,0.00036542,7]
[423185693,1779910270000,-150.0,0.00036629,7]
[423185689,1779910270000,-150.0,0.0003659,7]
[423185695,1779910270000,-150.0,0.00036647,7]
[423185696,1779910270000,-25000.0,0.00036648,10]
[423185697,1779910270000,-150.0,0.0003667,7]
[423185700,1779910270000,-150.0,0.00036712,7]
[423185702,1779910270000,-150.0,0.00036753,7]
[423185701,1779910270000,-150.0,0.00036712,60]
[423185699,1779910270000,-2500.0,0.00036684,10]
[423185698,1779910270000,-5000.0,0.00036678,10]
[423185703,1779910270000,-161.84,0.0003676,120]
[423185704,1779910270000,-150.0,0.00036795,30]
[423185706,1779910270000,-173.7916299,0.00036795,7]
[423185734,1779910270000,-181.9,0.00036893,30]
[423185768,1779910270000,-200.0,0.00037451,5]
[423185732,1779910270000,-376.49503158,0.00036848,120]
[423185774,1779910270000,-485.487886,0.00037532,7]
[423185765,1779910270000,-200.0,0.00037436,5]
[423185775,1779910270000,-485.487886,0.00037532,7]
[423185777,1779910270000,-222.392196,0.00037597,14]
[423185776,1779910270000,-485.487892,0.00037532,7]
[423185791,1779910270000,-161.84,0.0003784,86]
[423185769,1779910270000,-200.0,0.00037451,5]
[423185767,1779910270000,-150.0,0.00037449,2]
[423185766,1779910270000,-200.0,0.00037436,5]
[423185771,1779910270000,-157.89931684,0.00037474,2]
[423185770,1779910270000,-200.0,0.00037451,5]
[423185772,1779910270000,-150.383,0.00037498,2]
[423185780,1779910270000,-158639.0,0.000376,30]
[423185779,1779910270000,-244.89,0.000376,120]
[423185781,1779910270000,-151.0,0.000376,7]
[423185787,1779910270000,-157.89931684,0.00037748,2]
[423185786,1779910270000,-201.4,0.000377,15]
[423185783,1779910270000,-151.0,0.000376,7]
[423185782,1779910270000,-151.0,0.000376,7]
[423185784,1779910270000,-291.285115,0.000376,7]
[423185790,1779910270000,-2700.0,0.00037839,60]
[423185785,1779910270000,-501.0,0.00037607,15]
[423185789,1779910270000,-1100.0,0.00037839,60]
[423185788,1779910270000,-150.0,0.00037808,60]
[423185733,1779910270000,-150.0,0.0003688,2]
[423185773,1779910270000,-485.487886,0.00037532,7]
[423185763,1779910270000,-199.97,0.00037422,120]
[423185778,1779910270000,-389.58001468,0.00037599,30]
[423185755,1779910270000,-2769.79,0.00037297,120]
[423185764,1779910270000,-199.97,0.00037422,120]
[423185738,1779910270000,-157.89931684,0.00036926,2]
[423185737,1779910270000,-500.0,0.00036925,30]
[423185736,1779910270000,-259.39747585,0.000369,2]
[423185735,1779910270000,-248.54033598,0.00036899,2]
[423185742,1779910270000,-500.0,0.00036999,30]
[423185752,1779910270000,-157.89931684,0.000372,2]
[423185751,1779910270000,-330.0,0.00037192,43]
[423185749,1779910270000,-5947.24,0.00037,14]
[423185741,1779910270000,-500.0,0.00036999,30]
[423185746,1779910270000,-232.0,0.00037,2]
[423185745,1779910270000,-653.76632367,0.00037,120]
[423185748,1779910270000,-5947.24,0.00037,14]
[423185744,1779910270000,-613903.0,0.00037,2]
[423185743,1779910270000,-1341.79059644,0.00037,20]
[423185760,1779910270000,-191.40252205,0.000374,30]
[423185759,1779910270000,-191.40252207,0.000374,30]
[423185754,1779910270000,-350.0,0.00037263,15]
[423185756,1779910270000,-161.84,0.000373,60]
[423185758,1779910270000,-580.80658839,0.000374,30]
[423185761,1779910270000,-191.40252205,0.000374,30]
[423185757,1779910270000,-580.80658839,0.000374,30]
[423185753,1779910270000,-200.64187747,0.000372,120]
[423185747,1779910270000,-232.0,0.00037,2]
[423185750,1779910270000,-2000.0,0.000371,7]
[423185762,1779910270000,-181.6629453,0.00037402,120]
[423185837,1779910271000,-150.0,0.00038334,2]
[423185839,1779910271000,-1638.75,0.00038356,2]
[423185838,1779910271000,-222.392196,0.00038353,14]
[423185835,1779910271000,-1589.0,0.00038328,11]
[423185834,1779910271000,-1589.0,0.00038313,11]
[423185824,1779910271000,-928.0,0.00038233,2]
[423185826,1779910271000,-1589.0,0.00038296,11]
[423185823,1779910271000,-1356.0,0.00038233,2]
[423185825,1779910271000,-157.89931684,0.00038296,2]
[423185822,1779910271000,-1225.0,0.00038233,2]
[423185832,1779910271000,-163.0,0.00038311,11]
[423185829,1779910271000,-150.0,0.000383,35]
[423185831,1779910271000,-2317.0,0.00038305,11]
[423185846,1779910271000,-151.0,0.00038356,30]
[423185836,1779910271000,-278.0,0.00038329,2]
[423185830,1779910271000,-163.0,0.00038305,11]
[423185841,1779910271000,-247.673572,0.00038356,30]
[423185840,1779910271000,-151.0,0.00038356,30]
[423185843,1779910271000,-151.0,0.00038356,30]
[423185845,1779910271000,-151.0,0.00038356,30]
[423185842,1779910271000,-151.0,0.00038356,30]
[423185854,1779910271000,-151.0,0.00038356,30]
[423185844,1779910271000,-151.0,0.00038356,30]
[423185853,1779910271000,-151.0,0.00038356,30]
[423185849,1779910271000,-151.0,0.00038356,30]
[423185851,1779910271000,-273.91754,0.00038356,30]
[423185820,1779910271000,-525.0,0.00038233,2]
[423185833,1779910271000,-1589.0,0.00038313,11]
[423185821,1779910271000,-1272.0,0.00038233,2]
[423185796,1779910271000,-163.0,0.00037991,11]
[423185818,1779910271000,-2317.0,0.00038193,11]
[423185792,1779910271000,-2160.32340818,0.00037849,95]
[423185802,1779910271000,-151.0,0.00038,120]
[423185848,1779910271000,-151.0,0.00038356,30]
[423185795,1779910271000,-1589.0,0.00037959,11]
[423185794,1779910271000,-900.0,0.000379,13]
[423185793,1779910271000,-2160.32340818,0.00037849,95]
[423185797,1779910271000,-1589.0,0.00037991,11]
[423185799,1779910271000,-222.392196,0.00037997,14]
[423185801,1779910271000,-1644.99816312,0.00038,31]
[423185798,1779910271000,-222.392196,0.00037997,14]
[423185800,1779910271000,-222.392196,0.00037997,14]
[423185804,1779910271000,-68367.0,0.00038,2]
[423185814,1779910271000,-500.0,0.00038113,60]
[423185819,1779910271000,-2317.0,0.00038218,11]
[423185807,1779910271000,-157.89931684,0.00038022,2]
[423185808,1779910271000,-1589.0,0.00038045,11]
[423185806,1779910271000,-18389.0,0.00038,2]
[423185805,1779910271000,-2452300.0,0.00038,2]
[423185810,1779910271000,-2317.0,0.00038091,11]
[423185809,1779910271000,-1589.0,0.00038091,11]
[423185811,1779910271000,-277.72,0.000381,90]
[423185812,1779910271000,-251.79,0.000381,30]
[423185815,1779910271000,-2317.0,0.00038125,11]
[423185813,1779910271000,-1589.0,0.000381,11]
[423185817,1779910271000,-2317.0,0.00038138,11]
[423185827,1779910271000,-163.0,0.00038296,11]
[423185828,1779910271000,-11610.85,0.000383,2]
[423185816,1779910271000,-827.7,0.00038125,30]
[423185803,1779910271000,-152.0,0.00038,120]
[423185850,1779910271000,-151.0,0.00038356,30]
[423185847,1779910271000,-151.0,0.00038356,30]
[423185859,1779910271000,-151.0,0.00038356,30]
[423185885,1779910271000,-151.0,0.00038356,30]
[423185888,1779910271000,-151.0,0.00038356,30]
[423185886,1779910271000,-151.0,0.00038356,30]
[423185889,1779910271000,-151.0,0.00038356,30]
[423185893,1779910271000,-151.0,0.00038356,30]
[423185887,1779910271000,-151.0,0.00038356,30]
[423185904,1779910271000,-471.418946,0.00038356,7]
[423185902,1779910271000,-471.418946,0.00038356,7]
[423185901,1779910271000,-151.0,0.00038356,30]
[423185905,1779910271000,-471.418946,0.00038356,7]
[423185903,1779910271000,-201.37303,0.00038356,30]
[423185894,1779910271000,-151.0,0.00038356,30]
[423185899,1779910271000,-164.616811,0.00038356,30]
[423185896,1779910271000,-151.0,0.00038356,30]
[423185895,1779910271000,-151.0,0.00038356,30]
[423185900,1779910271000,-471.418946,0.00038356,7]
[423185898,1779910271000,-151.0,0.00038356,30]
[423185906,1779910271000,-471.418946,0.00038356,7]
[423185907,1779910271000,-471.418946,0.00038356,7]
[423185908,1779910271000,-471.418946,0.00038356,7]
[423185910,1779910271000,-151.0,0.00038356,30]
[423185914,1779910271000,-172.296715,0.00038356,30]
[423185913,1779910271000,-471.418946,0.00038356,7]
[423185912,1779910271000,-151.0,0.00038356,30]
[423185909,1779910271000,-471.418946,0.00038356,7]
[423185911,1779910271000,-471.418946,0.00038356,7]
[423185915,1779910271000,-471.418946,0.00038356,7]
[423185852,1779910271000,-151.0,0.00038356,30]
[423185916,1779910271000,-198.314198,0.00038356,30]
[423185890,1779910271000,-151.0,0.00038356,30]
[423185891,1779910271000,-151.0,0.00038356,30]
[423185897,1779910271000,-151.0,0.00038356,30]
[423185883,1779910271000,-151.0,0.00038356,30]
[423185855,1779910271000,-151.0,0.00038356,30]
[423185892,1779910271000,-151.0,0.00038356,30]
[423185858,1779910271000,-151.0,0.00038356,30]
[423185861,1779910271000,-151.0,0.00038356,30]
[423185856,1779910271000,-151.0,0.00038356,30]
[423185862,1779910271000,-241.09893,0.00038356,30]
[423185865,1779910271000,-153.695146,0.00038356,30]
[423185868,1779910271000,-151.0,0.00038356,30]
[423185867,1779910271000,-151.0,0.00038356,30]
[423185860,1779910271000,-151.0,0.00038356,30]
[423185866,1779910271000,-151.0,0.00038356,30]
[423185863,1779910271000,-215.461528,0.00038356,30]
[423185864,1779910271000,-151.0,0.00038356,30]
[423185870,1779910271000,-151.0,0.00038356,30]
[423185857,1779910271000,-151.0,0.00038356,30]
[423185871,1779910271000,-151.0,0.00038356,30]
[423185880,1779910271000,-151.0,0.00038356,30]
[423185884,1779910271000,-256.911012,0.00038356,30]
[423185879,1779910271000,-151.0,0.00038356,30]
[423185875,1779910271000,-151.0,0.00038356,30]
[423185873,1779910271000,-151.0,0.00038356,30]
[423185874,1779910271000,-151.0,0.00038356,30]
[423185882,1779910271000,-151.0,0.00038356,30]
[423185876,1779910271000,-151.0,0.00038356,30]
[423185878,1779910271000,-151.0,0.00038356,30]
[423185872,1779910271000,-151.0,0.00038356,30]
[423185881,1779910271000,-151.0,0.00038356,30]
[423185869,1779910271000,-152.994394,0.00038356,30]
[423185877,1779910271000,-151.0,0.00038356,30]
[423185960,1779910272000,-267.474973,0.00038356,30]
[423185959,1779910272000,-198.314198,0.00038356,30]
[423185966,1779910272000,-602.995536,0.00038356,30]
[423185956,1779910272000,-151.0,0.00038356,30]
[423185946,1779910272000,-151.0,0.00038356,30]
[423185957,1779910272000,-198.314198,0.00038356,30]
[423185948,1779910272000,-198.314198,0.00038356,30]
[423185955,1779910272000,-198.314198,0.00038356,30]
[423185952,1779910272000,-151.0,0.00038356,30]
[423185944,1779910272000,-151.0,0.00038356,30]
[423185968,1779910272000,-602.995536,0.00038356,30]
[423185947,1779910272000,-198.314198,0.00038356,30]
[423185958,1779910272000,-151.0,0.00038356,30]
[423185965,1779910272000,-602.995536,0.00038356,30]
[423185979,1779910272000,-455.373379,0.00038356,30]
[423185962,1779910272000,-151.0,0.00038356,30]
[423185964,1779910272000,-602.995536,0.00038356,30]
[423185961,1779910272000,-198.314206,0.00038356,30]
[423185963,1779910272000,-151.0,0.00038356,30]
[423185972,1779910272000,-602.995536,0.00038356,30]
[423185976,1779910272000,-602.995536,0.00038356,30]
[423185981,1779910272000,-455.373379,0.00038356,30]
[423185982,1779910272000,-455.373379,0.00038356,30]
[423185975,1779910272000,-455.373379,0.00038356,30]
[423185970,1779910272000,-602.995536,0.00038356,30]
[423185974,1779910272000,-602.995536,0.00038356,30]
[423185978,1779910272000,-602.995536,0.00038356,30]
[423185951,1779910272000,-198.314198,0.00038356,30]
[423185967,1779910272000,-151.0,0.00038356,30]
[423185949,1779910272000,-198.314198,0.00038356,30]
[423185917,1779910272000,-151.0,0.00038356,30]
[423185950,1779910272000,-151.0,0.00038356,30]
[423185980,1779910272000,-602.995536,0.00038356,30]
[423185919,1779910272000,-198.314198,0.00038356,30]
[423185929,1779910272000,-471.418946,0.00038356,7]
[423185918,1779910272000,-471.418946,0.00038356,7]
[423185921,1779910272000,-471.418946,0.00038356,7]
[423185922,1779910272000,-198.314198,0.00038356,30]
[423185924,1779910272000,-471.418946,0.00038356,7]
[423185920,1779910272000,-151.0,0.00038356,30]
[423185927,1779910272000,-471.418946,0.00038356,7]
[423185928,1779910272000,-198.314198,0.00038356,30]
[423185923,1779910272000,-151.0,0.00038356,30]
[423185925,1779910272000,-198.314198,0.00038356,30]
[423185926,1779910272000,-151.0,0.00038356,30]
[423185931,1779910272000,-198.314198,0.00038356,30]
[423185930,1779910272000,-151.0,0.00038356,30]
[423185941,1779910272000,-471.418938,0.00038356,7]
[423185932,1779910272000,-151.0,0.00038356,30]
[423185934,1779910272000,-198.314198,0.00038356,30]
[423185939,1779910272000,-471.418946,0.00038356,7]
[423185935,1779910272000,-151.0,0.00038356,30]
[423185936,1779910272000,-471.418946,0.00038356,7]
[423185937,1779910272000,-198.314198,0.00038356,30]
[423185933,1779910272000,-471.418946,0.00038356,7]
[423185940,1779910272000,-198.314198,0.00038356,30]
[423185938,1779910272000,-151.0,0.00038356,30]
[423185943,1779910272000,-198.314198,0.00038356,30]
[423185953,1779910272000,-198.314198,0.00038356,30]
[423185954,1779910272000,-151.0,0.00038356,30]
[423185945,1779910272000,-198.314198,0.00038356,30]
[423185942,1779910272000,-151.0,0.00038356,30]
[423185969,1779910272000,-151.0,0.00038356,30]
[423186038,1779910272000,-151.0,0.00038356,30]
[423185973,1779910272000,-455.373379,0.00038356,30]
[423186020,1779910272000,-351.652775,0.00038356,30]
[423186018,1779910272000,-351.652775,0.00038356,30]
[423186016,1779910272000,-351.652775,0.00038356,30]